[Event "GMT Biel Chess Festival classic"]
[Site "Biel/Bienne, Switzerland"]
[Date "????.??.??"]
[Round "3.4"]
[White "Ã‰douard, Romain"]
[Black "Anton Guijarro, David"]
[Result "0-1"]
[TimeControl "90 minutes for the first 40 moves + 30 minutes for the rest of the game with an addition of 30 seconds per move starting from move one"]
[WhiteTitle "GM"]
[BlackTitle "GM"]
[WhiteFideId "633429"]
[BlackFideId "2285525"]
[WhiteElo "2649"]
[BlackElo "2703"]

1. d4 {[%clk 01:30:57]} {[%emt 00:00:02]} Nf6 {[%clk 01:30:16]} {[%emt
00:00:45]} 2. c4 {[%clk 01:31:08]} {[%emt 00:00:19]} e6 {[%clk 01:30:36]}
{[%emt 00:00:10]} 3. Nc3 {[%clk 01:31:34]} {[%emt 00:00:04]} Bb4 {[%clk
01:30:31]} {[%emt 00:00:35]} 4. Qc2 {[%clk 01:31:25]} {[%emt 00:00:39]} O-O
{[%clk 01:29:53]} {[%emt 00:01:08]} 5. e4 {[%clk 01:31:40]} {[%emt 00:00:15]}
d5 {[%clk 01:29:18]} {[%emt 00:01:05]} 6. e5 {[%clk 01:32:05]} {[%emt
00:00:06]} Ne4 {[%clk 01:29:30]} {[%emt 00:00:18]} 7. Bd3 {[%clk 01:31:50]}
{[%emt 00:00:45]} c5 {[%clk 01:29:13]} {[%emt 00:00:47]} 8. Nf3 {[%clk
01:32:13]} {[%emt 00:00:07]} cxd4 {[%clk 01:28:42]} {[%emt 00:01:02]} 9. Nxd4
{[%clk 01:32:36]} {[%emt 00:00:06]} Nd7 {[%clk 01:28:29]} {[%emt 00:00:43]} 10.
Bf4 {[%clk 01:32:36]} {[%emt 00:00:30]} Qh4 {[%clk 01:27:42]} {[%emt 00:01:17]}
11. g3 {[%clk 01:33:00]} {[%emt 00:00:06]} Qh5 {[%clk 01:27:55]} {[%emt
00:00:18]} 12. O-O {[%clk 00:46:25]} {[%emt 00:47:04]} g5 {[%clk 01:23:02]}
{[%emt 00:05:23]} 13. cxd5 {[%clk 00:46:28]} {[%emt 00:00:27]} Bxc3 {[%clk
01:14:34]} {[%emt 00:08:58]} 14. bxc3 {[%clk 00:45:15]} {[%emt 00:01:42]} exd5
{[%clk 01:14:15]} {[%emt 00:00:49]} 15. Bc1 {[%clk 00:40:49]} {[%emt 00:04:55]}
Nxe5 {[%clk 01:07:31]} {[%emt 00:07:15]} 16. Bxe4 {[%clk 00:41:02]} {[%emt
00:00:17]} dxe4 {[%clk 01:06:51]} {[%emt 00:01:10]} 17. Qxe4 {[%clk 00:41:29]}
{[%emt 00:00:03]} Re8 {[%clk 00:48:13]} {[%emt 00:19:09]} 18. f4 {[%clk
00:35:27]} {[%emt 00:06:31]} Qxh2+ {[%clk 00:38:58]} {[%emt 00:09:46]} 19. Kxh2
{[%clk 00:35:55]} {[%emt 00:00:02]} Ng4+ {[%clk 00:39:19]} {[%emt 00:00:09]} 20.
Kg2 {[%clk 00:35:14]} {[%emt 00:01:10]} Rxe4 {[%clk 00:39:40]} {[%emt
00:00:10]} 21. fxg5 {[%clk 00:35:40]} {[%emt 00:00:03]} Bd7 {[%clk 00:37:35]}
{[%emt 00:02:35]} 22. Bf4 {[%clk 00:33:21]} {[%emt 00:02:49]} Rae8 {[%clk
00:33:50]} {[%emt 00:04:15]} 23. Rad1 {[%clk 00:31:35]} {[%emt 00:02:16]} Ne3+
{[%clk 00:27:18]} {[%emt 00:07:02]} 24. Bxe3 {[%clk 00:32:00]} {[%emt
00:00:05]} Rxe3 {[%clk 00:27:45]} {[%emt 00:00:03]} 25. Nf5 {[%clk 00:30:57]}
{[%emt 00:01:32]} Re2+ {[%clk 00:21:55]} {[%emt 00:06:21]} 26. Kh3 {[%clk
00:31:20]} {[%emt 00:00:07]} Be6 {[%clk 00:21:55]} {[%emt 00:00:30]} 27. a4
{[%clk 00:31:20]} {[%emt 00:00:30]} Re3 {[%clk 00:21:20]} {[%emt 00:01:05]} 28.
c4 {[%clk 00:28:57]} {[%emt 00:02:53]} Re4 {[%clk 00:19:20]} {[%emt 00:02:30]}
29. Rb1 {[%clk 00:27:36]} {[%emt 00:01:51]} b6 {[%clk 00:18:18]} {[%emt
00:01:32]} 30. a5 {[%clk 00:26:30]} {[%emt 00:01:35]} Re5 {[%clk 00:17:06]}
{[%emt 00:01:42]} 31. g4 {[%clk 00:26:55]} {[%emt 00:00:04]} Rxa5 {[%clk
00:16:59]} {[%emt 00:00:38]} 32. Rf4 {[%clk 00:27:22]} {[%emt 00:00:02]} Rd8
{[%clk 00:13:59]} {[%emt 00:03:30]} 33. Rb3 {[%clk 00:26:33]} {[%emt 00:01:19]}
Rc5 {[%clk 00:12:40]} {[%emt 00:01:49]} 34. Ra3 {[%clk 00:24:51]} {[%emt
00:02:12]} Rd7 {[%clk 00:11:50]} {[%emt 00:01:20]} 35. Re3 {[%clk 00:24:51]}
{[%emt 00:00:30]} Rdc7 {[%clk 00:03:04]} {[%emt 00:09:17]} 36. Rd3 {[%clk
00:23:06]} {[%emt 00:02:15]} Bxf5 {[%clk 00:03:10]} {[%emt 00:00:24]} 37. gxf5
{[%clk 00:22:41]} {[%emt 00:00:55]} Rxc4 {[%clk 00:02:02]} {[%emt 00:01:39]} 38.
Rxc4 {[%clk 00:06:30]} {[%emt 00:16:40]} Rxc4 {[%clk 00:02:28]} {[%emt
00:00:04]} 39. Rd7 {[%clk 00:06:56]} {[%emt 00:00:04]} a5 {[%clk 00:01:50]}
{[%emt 00:01:07]} 40. Rb7 {[%clk 00:06:58]} {[%emt 00:00:28]} Rc8 {[%clk
00:01:34]} {[%emt 00:00:46]} 41. Kg4 {[%clk 00:04:02]} {[%emt 00:03:26]} Ra8
{[%clk 00:24:20]} {[%emt 00:07:44]} 42. g6 {[%clk 00:29:14]} {[%emt 00:05:18]}
hxg6 {[%clk 00:18:44]} {[%emt 00:06:06]} 43. fxg6 {[%clk 00:29:41]} {[%emt
00:00:03]} fxg6 {[%clk 00:18:16]} {[%emt 00:00:58]} 44. Rxb6 {[%clk 00:29:53]}
{[%emt 00:00:18]} Kf7 {[%clk 00:16:47]} {[%emt 00:01:59]} 45. Rb7+ {[%clk
00:30:11]} {[%emt 00:00:12]} Ke6 {[%clk 00:17:03]} {[%emt 00:00:13]} 0-1

[Event "GMT Biel Chess Festival classic"]
[Site "Biel/Bienne, Switzerland"]
[Date "????.??.??"]
[Round "4.1"]
[White "Studer, NoÃ«l"]
[Black "Anton Guijarro, David"]
[Result "1-0"]
[TimeControl "90 minutes for the first 40 moves + 30 minutes for the rest of the game with an addition of 30 seconds per move starting from move one"]
[WhiteTitle "GM"]
[BlackTitle "GM"]
[WhiteFideId "1319620"]
[BlackFideId "2285525"]
[WhiteElo "2437"]
[BlackElo "2703"]

1. d4 {[%clk 01:30:57]} {[%emt 00:00:02]} Nf6 {[%clk 01:30:44]} {[%emt
00:00:16]} 2. c4 {[%clk 01:31:23]} {[%emt 00:00:04]} g6 {[%clk 01:30:54]}
{[%emt 00:00:20]} 3. Nc3 {[%clk 01:31:44]} {[%emt 00:00:09]} d5 {[%clk
01:31:00]} {[%emt 00:00:24]} 4. cxd5 {[%clk 01:32:09]} {[%emt 00:00:05]} Nxd5
{[%clk 01:31:22]} {[%emt 00:00:08]} 5. e4 {[%clk 01:32:34]} {[%emt 00:00:05]}
Nxc3 {[%clk 01:31:36]} {[%emt 00:00:16]} 6. bxc3 {[%clk 01:33:00]} {[%emt
00:00:04]} Bg7 {[%clk 01:31:40]} {[%emt 00:00:26]} 7. Bc4 {[%clk 01:33:25]}
{[%emt 00:00:05]} c5 {[%clk 01:31:21]} {[%emt 00:00:49]} 8. Ne2 {[%clk
01:33:38]} {[%emt 00:00:17]} Nc6 {[%clk 01:31:15]} {[%emt 00:00:35]} 9. Be3
{[%clk 01:33:50]} {[%emt 00:00:19]} O-O {[%clk 01:30:42]} {[%emt 00:01:04]} 10.
O-O {[%clk 01:32:59]} {[%emt 00:01:21]} b6 {[%clk 01:29:27]} {[%emt 00:01:45]}
11. Rc1 {[%clk 01:31:53]} {[%emt 00:01:35]} Bb7 {[%clk 01:25:40]} {[%emt
00:04:18]} 12. Bb5 {[%clk 01:31:54]} {[%emt 00:00:29]} Na5 {[%clk 01:04:49]}
{[%emt 00:21:21]} 13. d5 {[%clk 01:09:48]} {[%emt 00:22:36]} c4 {[%clk
00:37:36]} {[%emt 00:27:43]} 14. Nd4 {[%clk 00:51:34]} {[%emt 00:18:44]} a6
{[%clk 00:33:18]} {[%emt 00:04:49]} 15. Ba4 {[%clk 00:51:56]} {[%emt 00:00:07]}
b5 {[%clk 00:33:06]} {[%emt 00:00:42]} 16. Bc2 {[%clk 00:52:20]} {[%emt
00:00:06]} Qd7 {[%clk 00:33:31]} {[%emt 00:00:06]} 17. h4 {[%clk 00:46:20]}
{[%emt 00:06:29]} e6 {[%clk 00:32:51]} {[%emt 00:01:10]} 18. dxe6 {[%clk
00:43:51]} {[%emt 00:03:00]} fxe6 {[%clk 00:33:15]} {[%emt 00:00:06]} 19. Qg4
{[%clk 00:44:15]} {[%emt 00:00:05]} Rae8 {[%clk 00:28:49]} {[%emt 00:04:56]} 20.
e5 {[%clk 00:34:51]} {[%emt 00:09:55]} Bxe5 {[%clk 00:17:40]} {[%emt 00:11:38]}
21. h5 {[%clk 00:34:59]} {[%emt 00:00:22]} Bxd4 {[%clk 00:13:37]} {[%emt
00:04:33]} 22. Bxd4 {[%clk 00:34:51]} {[%emt 00:00:37]} Nc6 {[%clk 00:13:29]}
{[%emt 00:00:39]} 23. Rcd1 {[%clk 00:29:16]} {[%emt 00:06:06]} Nxd4 {[%clk
00:11:06]} {[%emt 00:02:52]} 24. Rxd4 {[%clk 00:29:41]} {[%emt 00:00:04]} Qg7
{[%clk 00:10:17]} {[%emt 00:01:20]} 25. hxg6 {[%clk 00:30:06]} {[%emt
00:00:05]} hxg6 {[%clk 00:08:36]} {[%emt 00:02:10]} 26. Bxg6 {[%clk 00:25:25]}
{[%emt 00:05:11]} Re7 {[%clk 00:08:47]} {[%emt 00:00:19]} 27. Re1 {[%clk
00:11:03]} {[%emt 00:14:52]} Bd5 {[%clk 00:04:03]} {[%emt 00:05:15]} 28. Qg3
{[%clk 00:07:52]} {[%emt 00:03:41]} Rf6 {[%clk 00:03:10]} {[%emt 00:01:22]} 29.
Rg4 {[%clk 00:08:08]} {[%emt 00:00:14]} Qf8 {[%clk 00:01:07]} {[%emt 00:02:34]}
30. Re5 {[%clk 00:07:56]} {[%emt 00:00:41]} Rg7 {[%clk 00:00:56]} {[%emt
00:00:41]} 31. Rh5 {[%clk 00:06:10]} {[%emt 00:02:16]} Qe7 {[%clk 00:00:46]}
{[%emt 00:00:41]} 32. Rh6 {[%clk 00:05:56]} {[%emt 00:00:44]} 1-0

[Event "GMT Biel Chess Festival classic"]
[Site "Biel/Bienne, Switzerland"]
[Date "????.??.??"]
[Round "4.2"]
[White "Adams, Michael"]
[Black "Ã‰douard, Romain"]
[Result "1/2-1/2"]
[TimeControl "90 minutes for the first 40 moves + 30 minutes for the rest of the game with an addition of 30 seconds per move starting from move one"]
[WhiteTitle "GM"]
[BlackTitle "GM"]
[WhiteFideId "400041"]
[BlackFideId "633429"]
[WhiteElo "2701"]
[BlackElo "2649"]

1. e4 {[%clk 01:30:57]} {[%emt 00:00:02]} e6 {[%clk 01:30:57]} {[%emt
00:00:04]} 2. d4 {[%clk 01:31:20]} {[%emt 00:00:07]} d5 {[%clk 01:31:25]}
{[%emt 00:00:02]} 3. Nc3 {[%clk 01:31:41]} {[%emt 00:00:09]} Nf6 {[%clk
01:31:43]} {[%emt 00:00:12]} 4. e5 {[%clk 01:32:05]} {[%emt 00:00:06]} Nfd7
{[%clk 01:32:09]} {[%emt 00:00:05]} 5. Nce2 {[%clk 01:32:31]} {[%emt 00:00:04]}
c5 {[%clk 01:32:21]} {[%emt 00:00:18]} 6. c3 {[%clk 01:32:56]} {[%emt
00:00:05]} Nc6 {[%clk 01:32:46]} {[%emt 00:00:05]} 7. Nf3 {[%clk 01:33:21]}
{[%emt 00:00:04]} Qb6 {[%clk 01:30:55]} {[%emt 00:02:21]} 8. a3 {[%clk
01:33:41]} {[%emt 00:00:10]} cxd4 {[%clk 01:30:41]} {[%emt 00:00:44]} 9. cxd4
{[%clk 01:34:05]} {[%emt 00:00:06]} f6 {[%clk 01:31:07]} {[%emt 00:00:03]} 10.
exf6 {[%clk 01:33:03]} {[%emt 00:01:32]} Nxf6 {[%clk 01:31:35]} {[%emt
00:00:02]} 11. Nc3 {[%clk 01:31:40]} {[%emt 00:01:53]} Bd6 {[%clk 01:31:10]}
{[%emt 00:00:55]} 12. Bd3 {[%clk 01:20:38]} {[%emt 00:11:33]} O-O {[%clk
01:31:30]} {[%emt 00:00:09]} 13. O-O {[%clk 01:21:05]} {[%emt 00:00:03]} e5
{[%clk 01:29:21]} {[%emt 00:02:41]} 14. dxe5 {[%clk 01:15:32]} {[%emt
00:06:03]} Nxe5 {[%clk 01:29:46]} {[%emt 00:00:05]} 15. Be2 {[%clk 01:14:20]}
{[%emt 00:01:42]} Nxf3+ {[%clk 01:29:07]} {[%emt 00:01:09]} 16. Bxf3 {[%clk
01:14:43]} {[%emt 00:00:07]} d4 {[%clk 01:29:31]} {[%emt 00:00:05]} 17. Ne4
{[%clk 01:04:37]} {[%emt 00:10:37]} Nxe4 {[%clk 01:29:05]} {[%emt 00:00:57]} 18.
Bxe4 {[%clk 01:05:02]} {[%emt 00:00:04]} Bf5 {[%clk 01:29:23]} {[%emt
00:00:11]} 19. Bxf5 {[%clk 01:00:57]} {[%emt 00:04:36]} Rxf5 {[%clk 01:29:43]}
{[%emt 00:00:09]} 20. Qd3 {[%clk 01:00:13]} {[%emt 00:01:14]} Raf8 {[%clk
01:26:22]} {[%emt 00:03:52]} 21. Bd2 {[%clk 00:57:08]} {[%emt 00:03:35]} Qc7
{[%clk 01:24:24]} {[%emt 00:02:27]} 22. g3 {[%clk 00:50:11]} {[%emt 00:07:28]}
Qf7 {[%clk 01:22:10]} {[%emt 00:02:44]} 23. f4 {[%clk 00:49:50]} {[%emt
00:00:51]} a5 {[%clk 01:17:38]} {[%emt 00:05:03]} 24. Rac1 {[%clk 00:47:02]}
{[%emt 00:03:18]} Qd5 {[%clk 01:17:56]} {[%emt 00:00:12]} 25. Qc4 {[%clk
00:44:05]} {[%emt 00:03:27]} Qxc4 {[%clk 01:17:12]} {[%emt 00:01:13]} 26. Rxc4
{[%clk 00:42:37]} {[%emt 00:01:59]} g5 {[%clk 01:17:40]} {[%emt 00:00:02]} 27.
b4 {[%clk 00:26:41]} {[%emt 00:16:26]} axb4 {[%clk 01:17:27]} {[%emt 00:00:43]}
28. Bxb4 {[%clk 00:25:51]} {[%emt 00:01:20]} Bxb4 {[%clk 01:17:53]} {[%emt
00:00:04]} 29. Rxb4 {[%clk 00:25:16]} {[%emt 00:01:05]} gxf4 {[%clk 01:18:18]}
{[%emt 00:00:04]} 30. Rxf4 {[%clk 00:25:22]} {[%emt 00:00:24]} Rxf4 {[%clk
01:18:36]} {[%emt 00:00:12]} 31. gxf4 {[%clk 00:25:48]} {[%emt 00:00:03]} Rxf4
{[%clk 01:18:50]} {[%emt 00:00:16]} 32. Rxb7 {[%clk 00:26:10]} {[%emt
00:00:08]} Rf3 {[%clk 01:19:09]} {[%emt 00:00:10]} 33. Rd7 {[%clk 00:26:34]}
{[%emt 00:00:06]} Rxa3 {[%clk 01:19:34]} {[%emt 00:00:05]} 34. Rxd4 {[%clk
00:27:02]} {[%emt 00:00:03]} Ra2 {[%clk 01:19:52]} {[%emt 00:00:11]} 35. Rd7
{[%clk 00:27:27]} {[%emt 00:00:05]} Rb2 {[%clk 01:20:17]} {[%emt 00:00:05]} 36.
h3 {[%clk 00:27:51]} {[%emt 00:00:05]} h6 {[%clk 01:20:38]} {[%emt 00:00:08]}
37. Kh1 {[%clk 00:28:16]} {[%emt 00:00:05]} Ra2 {[%clk 01:21:00]} {[%emt
00:00:07]} 38. Kg1 {[%clk 00:28:43]} {[%emt 00:00:04]} Rb2 {[%clk 01:21:26]}
{[%emt 00:00:04]} 39. Kh1 {[%clk 00:29:10]} {[%emt 00:00:04]} Ra2 {[%clk
01:21:53]} {[%emt 00:00:02]} 40. Kg1 {[%clk 00:29:36]} {[%emt 00:00:04]} Rb2
{[%clk 01:22:19]} {[%emt 00:00:04]} 1/2-1/2

[Event "GMT Biel Chess Festival classic"]
[Site "Biel/Bienne, Switzerland"]
[Date "????.??.??"]
[Round "4.3"]
[White "Naiditsch, Arkadij"]
[Black "Wojtaszek, Radoslaw"]
[Result "0-1"]
[TimeControl "90 minutes for the first 40 moves + 30 minutes for the rest of the game with an addition of 30 seconds per move starting from move one"]
[WhiteTitle "GM"]
[BlackTitle "GM"]
[WhiteFideId "4650891"]
[BlackFideId "1118358"]
[WhiteElo "2626"]
[BlackElo "2719"]

1. e4 {[%clk 01:30:56]} {[%emt 00:00:03]} c5 {[%clk 01:30:57]} {[%emt
00:00:03]} 2. Nf3 {[%clk 01:31:17]} {[%emt 00:00:09]} d6 {[%clk 01:31:23]}
{[%emt 00:00:03]} 3. Bb5+ {[%clk 01:31:35]} {[%emt 00:00:12]} Nd7 {[%clk
01:31:48]} {[%emt 00:00:05]} 4. d4 {[%clk 01:31:49]} {[%emt 00:00:16]} cxd4
{[%clk 01:32:11]} {[%emt 00:00:07]} 5. Qxd4 {[%clk 01:32:10]} {[%emt 00:00:09]}
a6 {[%clk 01:32:35]} {[%emt 00:00:06]} 6. Bxd7+ {[%clk 01:32:21]} {[%emt
00:00:17]} Bxd7 {[%clk 01:32:57]} {[%emt 00:00:10]} 7. c4 {[%clk 01:32:30]}
{[%emt 00:00:21]} e5 {[%clk 01:31:19]} {[%emt 00:02:08]} 8. Qd3 {[%clk
01:32:52]} {[%emt 00:00:08]} b5 {[%clk 01:31:45]} {[%emt 00:00:05]} 9. Nc3
{[%clk 01:33:08]} {[%emt 00:00:14]} bxc4 {[%clk 01:32:04]} {[%emt 00:00:11]} 10.
Qxc4 {[%clk 01:33:32]} {[%emt 00:00:06]} Be6 {[%clk 01:32:17]} {[%emt
00:00:17]} 11. Qd3 {[%clk 01:33:53]} {[%emt 00:00:08]} h6 {[%clk 01:31:31]}
{[%emt 00:01:16]} 12. O-O {[%clk 01:34:14]} {[%emt 00:00:09]} Nf6 {[%clk
01:31:31]} {[%emt 00:00:29]} 13. Rd1 {[%clk 01:34:35]} {[%emt 00:00:10]} Be7
{[%clk 01:31:19]} {[%emt 00:00:42]} 14. Ne1 {[%clk 01:34:51]} {[%emt 00:00:14]}
O-O {[%clk 01:30:49]} {[%emt 00:01:01]} 15. Nc2 {[%clk 01:35:13]} {[%emt
00:00:08]} Qd7 {[%clk 01:19:59]} {[%emt 00:11:20]} 16. Ne3 {[%clk 01:33:28]}
{[%emt 00:02:14]} Rfc8 {[%clk 01:20:20]} {[%emt 00:00:09]} 17. Bd2 {[%clk
01:29:15]} {[%emt 00:04:44]} Bd8 {[%clk 01:17:48]} {[%emt 00:03:01]} 18. Ncd5
{[%clk 01:19:47]} {[%emt 00:09:57]} Qb7 {[%clk 01:06:35]} {[%emt 00:11:43]} 19.
Bc3 {[%clk 00:55:43]} {[%emt 00:24:35]} Nxd5 {[%clk 01:05:27]} {[%emt
00:01:39]} 20. Nxd5 {[%clk 00:52:46]} {[%emt 00:03:26]} Rc6 {[%clk 01:05:39]}
{[%emt 00:00:18]} 21. h3 {[%clk 00:40:58]} {[%emt 00:12:18]} Rac8 {[%clk
01:04:10]} {[%emt 00:01:58]} 22. Kh2 {[%clk 00:35:12]} {[%emt 00:06:18]} Bg5
{[%clk 00:47:49]} {[%emt 00:16:51]} 23. f3 {[%clk 00:22:04]} {[%emt 00:13:38]}
Rc5 {[%clk 00:42:03]} {[%emt 00:06:16]} 24. Ne3 {[%clk 00:18:34]} {[%emt
00:04:00]} Qb6 {[%clk 00:41:49]} {[%emt 00:00:45]} 25. Re1 {[%clk 00:15:16]}
{[%emt 00:03:48]} Bf4+ {[%clk 00:40:37]} {[%emt 00:01:41]} 26. g3 {[%clk
00:14:43]} {[%emt 00:01:03]} Bxe3 {[%clk 00:37:39]} {[%emt 00:03:28]} 27. Qxe3
{[%clk 00:14:53]} {[%emt 00:00:20]} Qc6 {[%clk 00:37:32]} {[%emt 00:00:37]} 28.
a3 {[%clk 00:09:30]} {[%emt 00:05:54]} f6 {[%clk 00:36:32]} {[%emt 00:01:29]}
29. Rad1 {[%clk 00:09:26]} {[%emt 00:00:33]} Rd8 {[%clk 00:30:11]} {[%emt
00:06:51]} 30. Rd2 {[%clk 00:08:13]} {[%emt 00:01:44]} d5 {[%clk 00:30:33]}
{[%emt 00:00:08]} 31. exd5 {[%clk 00:08:33]} {[%emt 00:00:10]} Rcxd5 {[%clk
00:30:58]} {[%emt 00:00:04]} 32. Rxd5 {[%clk 00:06:32]} {[%emt 00:02:31]} Qxd5
{[%clk 00:26:17]} {[%emt 00:05:11]} 33. f4 {[%clk 00:05:23]} {[%emt 00:01:39]}
Bc8 {[%clk 00:26:39]} {[%emt 00:00:08]} 34. fxe5 {[%clk 00:02:55]} {[%emt
00:02:59]} Bb7 {[%clk 00:27:05]} {[%emt 00:00:03]} 35. Rg1 {[%clk 00:03:07]}
{[%emt 00:00:18]} fxe5 {[%clk 00:26:58]} {[%emt 00:00:37]} 36. g4 {[%clk
00:03:20]} {[%emt 00:00:17]} Rf8 {[%clk 00:26:37]} {[%emt 00:00:51]} 37. g5
{[%clk 00:02:11]} {[%emt 00:01:39]} Rf3 {[%clk 00:21:49]} {[%emt 00:05:18]} 38.
Qxe5 {[%clk 00:00:47]} {[%emt 00:01:53]} Rf2+ {[%clk 00:21:51]} {[%emt
00:00:27]} 39. Kg3 {[%clk 00:01:11]} {[%emt 00:00:07]} Rg2+ {[%clk 00:21:20]}
{[%emt 00:01:01]} 40. Rxg2 {[%clk 00:01:33]} {[%emt 00:00:09]} Qxg2+ {[%clk
00:21:42]} {[%emt 00:00:08]} 41. Kh4 {[%clk 00:01:57]} {[%emt 00:00:06]} Qf2+
{[%clk 00:21:51]} {[%emt 00:00:21]} 0-1

[Event "GMT Biel Chess Festival classic"]
[Site "Biel/Bienne, Switzerland"]
[Date "????.??.??"]
[Round "4.4"]
[White "Pentala, Harikrishna"]
[Black "Keymer, Vincent"]
[Result "1-0"]
[TimeControl "90 minutes for the first 40 moves + 30 minutes for the rest of the game with an addition of 30 seconds per move starting from move one"]
[WhiteTitle "GM"]
[BlackTitle "GM"]
[WhiteFideId "5007003"]
[BlackFideId "12940690"]
[WhiteElo "2719"]
[BlackElo "2487"]

1. c4 {[%clk 01:30:56]} {[%emt 00:00:02]} c6 {[%clk 01:30:56]} {[%emt
00:00:05]} 2. d4 {[%clk 01:31:07]} {[%emt 00:00:18]} d5 {[%clk 01:31:22]}
{[%emt 00:00:04]} 3. Nc3 {[%clk 01:31:19]} {[%emt 00:00:18]} Nf6 {[%clk
01:31:47]} {[%emt 00:00:06]} 4. e3 {[%clk 01:31:30]} {[%emt 00:00:18]} e6
{[%clk 01:31:55]} {[%emt 00:00:22]} 5. Nf3 {[%clk 01:31:53]} {[%emt 00:00:07]}
Nbd7 {[%clk 01:32:04]} {[%emt 00:00:21]} 6. Bd3 {[%clk 01:32:14]} {[%emt
00:00:08]} dxc4 {[%clk 01:31:55]} {[%emt 00:00:40]} 7. Bxc4 {[%clk 01:32:36]}
{[%emt 00:00:08]} b5 {[%clk 01:32:18]} {[%emt 00:00:07]} 8. Bb3 {[%clk
01:31:50]} {[%emt 00:01:15]} b4 {[%clk 01:30:11]} {[%emt 00:02:37]} 9. Ne2
{[%clk 01:31:56]} {[%emt 00:00:23]} Be7 {[%clk 01:25:13]} {[%emt 00:05:29]} 10.
O-O {[%clk 01:27:26]} {[%emt 00:05:00]} Bb7 {[%clk 01:18:39]} {[%emt 00:07:05]}
11. Nf4 {[%clk 01:23:00]} {[%emt 00:04:55]} c5 {[%clk 01:07:09]} {[%emt
00:12:01]} 12. Ng5 {[%clk 01:15:16]} {[%emt 00:08:13]} O-O {[%clk 00:37:54]}
{[%emt 00:29:46]} 13. Ngxe6 {[%clk 01:01:22]} {[%emt 00:14:23]} fxe6 {[%clk
00:38:19]} {[%emt 00:00:05]} 14. Nxe6 {[%clk 01:01:45]} {[%emt 00:00:07]} Qc8
{[%clk 00:36:45]} {[%emt 00:02:04]} 15. Nxc5+ {[%clk 00:59:52]} {[%emt
00:02:23]} Kh8 {[%clk 00:36:01]} {[%emt 00:01:15]} 16. Nxb7 {[%clk 00:56:33]}
{[%emt 00:03:49]} Qxb7 {[%clk 00:36:27]} {[%emt 00:00:04]} 17. f3 {[%clk
00:55:03]} {[%emt 00:01:59]} a5 {[%clk 00:31:22]} {[%emt 00:05:36]} 18. e4
{[%clk 00:52:23]} {[%emt 00:03:10]} Nb6 {[%clk 00:28:26]} {[%emt 00:03:27]} 19.
Qe2 {[%clk 00:48:00]} {[%emt 00:04:52]} a4 {[%clk 00:25:02]} {[%emt 00:03:55]}
20. Bc2 {[%clk 00:47:28]} {[%emt 00:01:01]} Rfc8 {[%clk 00:19:59]} {[%emt
00:05:34]} 21. Bd3 {[%clk 00:46:47]} {[%emt 00:01:10]} a3 {[%clk 00:20:01]}
{[%emt 00:00:28]} 22. b3 {[%clk 00:41:36]} {[%emt 00:05:40]} Qd7 {[%clk
00:19:50]} {[%emt 00:00:42]} 23. Be3 {[%clk 00:41:01]} {[%emt 00:01:04]} Rc3
{[%clk 00:20:12]} {[%emt 00:00:10]} 24. Rad1 {[%clk 00:40:32]} {[%emt
00:00:58]} Rd8 {[%clk 00:19:29]} {[%emt 00:01:14]} 25. Kh1 {[%clk 00:38:16]}
{[%emt 00:02:45]} Qe8 {[%clk 00:08:41]} {[%emt 00:11:19]} 26. Bg1 {[%clk
00:34:44]} {[%emt 00:04:01]} Bf8 {[%clk 00:07:32]} {[%emt 00:01:40]} 27. Qe1
{[%clk 00:27:55]} {[%emt 00:07:17]} Nbd7 {[%clk 00:04:57]} {[%emt 00:03:06]} 28.
Bb1 {[%clk 00:27:36]} {[%emt 00:00:48]} Nh5 {[%clk 00:03:14]} {[%emt 00:02:14]}
29. e5 {[%clk 00:25:49]} {[%emt 00:02:17]} Qe6 {[%clk 00:01:59]} {[%emt
00:01:45]} 30. Qh4 {[%clk 00:20:12]} {[%emt 00:06:06]} Qh6 {[%clk 00:01:22]}
{[%emt 00:01:08]} 31. g4 {[%clk 00:20:22]} {[%emt 00:00:19]} Nf4 {[%clk
00:00:36]} {[%emt 00:01:17]} 32. Qxd8 {[%clk 00:20:22]} {[%emt 00:00:30]} Qh3
{[%clk 00:01:02]} {[%emt 00:00:04]} 33. Rf2 {[%clk 00:20:41]} {[%emt 00:00:10]}
Rxf3 {[%clk 00:00:37]} {[%emt 00:00:56]} 34. Qa8 {[%clk 00:18:24]} {[%emt
00:02:47]} Rxf2 {[%clk 00:00:39]} {[%emt 00:00:29]} 35. Bxf2 {[%clk 00:18:48]}
{[%emt 00:00:06]} Qxg4 {[%clk 00:00:45]} {[%emt 00:00:24]} 36. Rg1 {[%clk
00:17:57]} {[%emt 00:01:20]} Qh5 {[%clk 00:00:52]} {[%emt 00:00:24]} 37. Re1
{[%clk 00:17:08]} {[%emt 00:01:18]} 1-0